Cogmind - Beta 13 @@@ ROGUE MODE // 2024.04.10 @ 00:38:41 Player: Evilsquid Result: Destroyed by G2-2CZ(R) with Subdweller Laser Performance ------------- Evolutions (0) 0 Regions Visited (2) 400 Robots Destroyed (48) 240 Value Destroyed (1147) 1147 Prototype IDs (1) 20 Alien Tech Used (0) 0 Bonus (0) 0 TOTAL SCORE: 1807 Bonus ------- None Cogmind --------- Core Integrity 0/250 Matter 300/300 Energy 200/200 System Corruption 9% Temperature Cool (6) Movement Rolling (110) Location -10/Subcaves Parts ------- > --- POWER (1+1) ------ Subdweller Power Source > --- PROPULSION (2+1) - Subdweller Monowheel > --- UTILITY (2+1) ---- Disposable Heat Sink Rainbow Chip > --- WEAPON (2) ------- Subdweller Laser Subdweller Beam Cannon > --- INVENTORY (5) ---- Medium Armor Plating Medium Armor Plating Heavy Hammer Peak State ------------ > --- POWER ------------ Subdweller Power Source > --- PROPULSION ------- (None) > --- UTILITY ---------- Disposable Heat Sink Rainbow Chip > --- WEAPON ----------- Subdweller Laser Subdweller Beam Cannon Battle Rifle > --- INVENTORY -------- Medium Armor Plating Medium Armor Plating Heavy Hammer [Rating: 23] Favorites ----------- Power Ion Engine Engine Ion Engine Propulsion Light Treads Treads Light Treads Wheel Subdweller Monowheel Utility Small Storage Unit Device Disposable Heat Sink Storage Small Storage Unit Processor Rainbow Chip Protection Medium Armor Plating Weapon EM Shotgun Energy Gun EM Shotgun Energy Cannon Subdweller Beam Cannon Ballistic Gun Assault Rifle Impact Weapon Heavy Hammer Build | -11 -10 -10 ------- Run | Yrd Mat Sub Slots Evolved . | . . . Power . | . . . Propulsion . | . . . Utility . | . . . Weapon . | . . . Parts Attached 43 | 7 15 21 Power 7 | 1 4 2 Engine 7 | 1 4 2 Core . | . . . Reactor . | . . . Propulsion 8 | 2 2 4 Treads 7 | 2 2 3 Leg . | . . . Wheel 1 | . . 1 Hover . | . . . Flight . | . . . Utility 8 | 2 2 4 Device 3 | 1 1 1 Storage 1 | 1 . . Processor 1 | . . 1 Hackware . | . . . Protection 3 | . 1 2 Artifact . | . . . Weapon 20 | 2 7 11 Energy Gun 7 | . 3 4 Energy Cannon 1 | . . 1 Ballistic Gun 7 | 2 3 2 Ballistic Cannon . | . . . Launcher . | . . . Special Weapon . | . . . Impact Weapon 5 | . 1 4 Slashing Weapon . | . . . Piercing Weapon . | . . . Special Melee Weapon . | . . . Unidentified Prototypes 1 | . . 1 Corrupted Parts 1 | . . 1 System Corruption 9 | . . 9 Parts Lost 10 | . . 10 Power 1 | . . 1 Propulsion 3 | . . 3 Utility 2 | . . 2 Weapon 4 | . . 4 Highest Loss Streak 3 | . . 3 To Critical Strikes . | . . . Average Slot Usage (%) 84 | . 99 64 Engine 11 | . 14 8 Treads 22 | . 28 16 Device 6 | . 8 4 Storage 9 | . 14 3 Processor 2 | . . 5 Protection 5 | . 5 4 Energy Gun 11 | . 13 9 Energy Cannon 1 | . . 4 Ballistic Gun 8 | . 14 2 Impact Weapon 2 | . . 4 Naked Turns . | . . . Heaviest Build 29 | 14 23 29 Greatest Support 40 | 40 40 40 Greatest Overweight (x) 6 | . . 6 Average Overweight (x) . | . . . Largest Inventory Capacity 8 | 8 8 8 Average Capacity 6 | 7 8 5 Most Carried 8 | 6 8 8 Average Carried 6 | 4 7 5 Final Capacity 8 | 8 8 5 Final Carried 8 | 6 8 3 Class Distribution -------------------- 95% | Mutant 3% | Scavenger-Mutant Dominant Class ---------------- Mutant | -10/Materials Mutant | -10/Subcaves Resources | -11 -10 -10 ----------- Run | Yrd Mat Sub Matter Collected 901 | 221 397 283 Remotely . | . . . Salvage Created 1707 | 92 1030 585 Parts 101 | 8 58 35 Haulers Intercepted 2 | . 2 . Recyclers Shooed 2 | . 2 . Parts Field Recycled . | . . . Retrieved Matter . | . . . Parts Self-Destructed 18 | . . 18 Prevented 1 | . . 1 Kills | -11 -10 -10 ------- Run | Yrd Mat Sub Combat Hostiles Destroyed 35 | . 20 15 Guns 29 | . 19 10 Cannons 3 | . . 3 AOE 2 | . 1 1 Classes Destroyed 9 | 2 6 1 Worker 1 | . 1 . Tunneler 3 | 2 1 . Hauler 2 | . 2 . Recycler 3 | 1 2 . Operator 1 | . 1 . Watcher 3 | . 3 . Swarmer 10 | . 6 4 Grunt 14 | . 14 . Subdweller 11 | . . 11 Best Kill Streak 4 | 2 4 4 Combat Bots Only 4 | . 3 4 Max Kills in Single Turn 2 | 1 1 2 Gunslinging . | . . . Exploded 1 | . 1 1 Melee . | . . . Uniques/NPCs Destroyed . | . . . Combat | -11 -10 -10 -------- Run | Yrd Mat Sub Hostile Shots Fired 247 | . 79 168 Missed 81 | . 24 57 Damage Taken 2005 | . 603 1402 Core 255 | . 86 169 Absorbed by Shields . | . . . Regen/Repaired (Parts) 12 | . 12 . Core Remaining (%) 100 | 100 . . Volleys Fired 154 | 6 75 73 Largest 3 | 2 2 3 Hottest 165 | 40 90 165 Shots Fired 254 | 12 137 105 Gun 224 | 12 137 75 Cannon 30 | . . 30 Launcher . | . . . Special . | . . . Kinetic 112 | 12 89 11 Thermal 37 | . . 37 Explosive . | . . . Electromagnetic 105 | . 48 57 Robot Hit Streak 18 | 4 15 18 Robot Miss Streak 6 | 2 4 6 Penetration Max . | . . . Secondary Targets 2 | . 1 1 Max Gunslinging Chain 1 | . 1 1 Shots Hit Robots 159 | 6 91 62 Core Hits 87 | 4 52 31 Critical Kills . | . . . Critical Parts Destroyed . | . . . Critical Strikes . | . . . Melee Attacks 13 | . 1 12 Impact 13 | . 1 12 Slashing . | . . . Piercing . | . . . Sneak Attacks . | . . . Combat Hostiles . | . . . Follow-up Attacks . | . . . Damage Inflicted 2470 | 71 1272 1127 Guns 2046 | 71 1117 858 Cannons 170 | . . 170 Explosions 231 | . 132 99 Melee . | . . . Ramming 23 | . 23 . Kinetic 830 | 71 606 153 Thermal 530 | . 132 398 Explosive . | . . . Electromagnetic 1087 | . 511 576 Impact . | . . . Slashing . | . . . Piercing . | . . . Highest Corruption 9 | . . 9 Average Corruption 9 | . . 9 Corruption Purged . | . . . Corruption Blocked . | . . . Effects 37 | . . 37 Message Errors 8 | . . 8 Matter Fused 12 | . . 12 Heat Flow Errors 3 | . . 3 Energy Discharges 1 | . . 1 Data Loss (minor) 6 | . . 6 Misfires 3 | . . 3 Alerts 2 | . . 2 Weapon Failures 2 | . . 2 Overload Shots . | . . . Overflow Damage 48 | . 6 42 Projectiles . | . . . Explosions 48 | . 6 42 Melee . | . . . Knockbacks . | . . . Impact . | . . . Kinetic . | . . . Secondary . | . . . Self-Inflicted Damage 88 | . 30 58 Shots 2 | . 1 1 Rammed 6 | . 6 . Targets Rammed 7 | . 7 . Kicked . | . . . Crushed 1 | . 1 . Highest Temperature 225 | . 225 177 Average Temperature 65 | . 66 62 Received Heat Transfer 591 | . 213 378 Siege Activations . | . . . Robots Corrupted 1 | . . 1 Combat Hostiles 1 | . . 1 Parts Fried 11 | . 1 10 Impact Corruptions . | . . . Robots Melted . | . . . Combat Hostiles . | . . . Parts Melted 3 | . . 3 Heat Transferred 572 | . 150 422 Parts Sabotaged . | . . . Parts Stolen . | . . . Parts Stripped . | . . . Power Chain Reactions 3 | . 2 1 Alert | -11 -10 -10 ------- Run | Yrd Mat Sub Peak Influence 326 | 15 326 . Initial 9 | . 9 . Average 100 | 4 106 . Maximum Alert Level 1 | . 1 . Low Security (%) 71 | 100 70 . Level 1 28 | . 29 . Level 2 . | . . . Level 3 . | . . . Level 4 . | . . . Level 5 . | . . . High Security . | . . . Max Security . | . . . Squads Dispatched 6 | . 6 . Investigation 3 | . 3 . Extermination . | . . . Reinforcement 3 | . 3 . Assault . | . . . Garrison . | . . . Intercept . | . . . Searches Triggered . | . . . Construction Impeded . | . . . Haulers Reinforced . | . . . Active Scanning Responses . | . . . Cargo Convoy Interrupts . | . . . Stealth | -11 -10 -10 --------- Run | Yrd Mat Sub Distress Signals 1 | . 1 . Communications Jammed . | . . . Distress Signals . | . . . Times Spotted 59 | . 33 26 Peak Tracking Total 4 | . 4 4 Tactical Retreats 7 | . 2 5 Traps | -11 -10 -10 ------- Run | Yrd Mat Sub Traps Triggered 3 | . 3 . Indirectly . | . . . Trap Hack Attempts . | . . . Triggered . | . . . Disarmed . | . . . Reprogrammed . | . . . Reused . | . . . Traps Extracted . | . . . Installed . | . . . Triggered . | . . . Machines | -11 -10 -10 ---------- Run | Yrd Mat Sub Machines Disabled 1 | . 1 . Max in Single Turn 1 | . 1 . Machines Repaired . | . . . Machines Dismantled . | . . . Machines Sabotaged . | . . . Overloaded Fab Kills . | . . . Hacking | -11 -10 -10 --------- Run | Yrd Mat Sub Machines Accessed 1 | . 1 . Terminals . | . . . Fabricators . | . . . Repair Stations 1 | . 1 . Recycling Units . | . . . Scanalyzers . | . . . Garrison Access . | . . . Total Hacks 3 | . 3 . Successful 2 | . 2 . Failed 1 | . 1 . Catastrophic . | . . . Database Lockouts . | . . . Manual . | . . . Terminals . | . . . Fabricators . | . . . Repair Stations 3 | . 3 . Recycling Units . | . . . Scanalyzers . | . . . Garrison Access . | . . . Terminal Hacks . | . . . Fabricator Hacks . | . . . Repair Station Hacks 2 | . 2 . Scan Component 1 | . 1 . Repair 1 | . 1 . Recycling Unit Hacks . | . . . Scanalyzer . | . . . Garrison Access Hacks . | . . . Unauthorized Hacks . | . . . Terminals . | . . . Fabricators . | . . . Repair Stations . | . . . Recycling Units . | . . . Scanalyzers . | . . . Garrison Access . | . . . Data Cores Recovered . | . . . Used . | . . . Hacking Detections 1 | . 1 . Full Trace Events 1 | . 1 . Feedback Events . | . . . Feedback Blocked . | . . . Robot Schematics Acquired . | . . . Robots Built . | . . . Authchips . | . . . Time . | . . . Total Robot Build Rating . | . . . Part Schematics Acquired . | . . . Parts Built . | . . . Authchips . | . . . Time . | . . . Total Part Build Rating . | . . . Parts Repaired 1 | . 1 . Time 32 | . 32 . Parts Recycled . | . . . Recycled Matter . | . . . Retrieved Matter . | . . . Retrieved Components . | . . . Parts Scanalyzed . | . . . Part Schematics Acquired . | . . . Parts Damaged . | . . . Bothacking | -11 -10 -10 ------------ Run | Yrd Mat Sub Used RIF Installer . | . . . Robots Hacked . | . . . Non-combat . | . . . Combat . | . . . Robot Hacks Applied . | . . . Relay Couplers Released . | . . . Fabnet Peak Effective % . | . . . Robots Rewired . | . . . Allies Hacked . | . . . Hacks Repelled . | . . . Allies | -11 -10 -10 -------- Run | Yrd Mat Sub Total Allies . | . . . Largest Group . | . . . Highest-Rated Group . | . . . Highest-Rated Ally . | . . . Total Orders . | . . . Ally Attacks . | . . . Total Damage . | . . . Kills . | . . . Allies Corrupted . | . . . Allies Melted . | . . . Intel | -11 -10 -10 ------- Run | Yrd Mat Sub Robot Analysis Total . | . . . Derelict Logs Recovered . | . . . Drone Launches . | . . . Drone Recoveries . | . . . Exploration | -11 -10 -10 ------------- Run | Yrd Mat Sub Turns Passed 4634 | 157 2479 1998 Spaces Moved 2232 | 84 1075 1073 Core 22 | 9 . 13 Treads 2160 | 75 1075 1010 Legs . | . . . Wheels 50 | . . 50 Hover . | . . . Flight . | . . . Fastest Speed 50 | 50 160 110 Average Speed 159 | 148 160 159 Slowest Speed 350 | 160 160 350 Overloaded Moves . | . . . Propulsion Burnouts . | . . . Robots Hopped . | . . . Cave-ins Triggered . | . . . Exploration Rate (%) 50 | 7 96 47 Regions Visited 2 Branch Regions 1 Pre-discovered Areas . | . . . Known Exits Taken . | . . . Unknown Exits Taken 2 | 1 1 . Scrap Searched 7 | . . 7 Spaces Dug 7 | . 1 6 Terrain Destroyed 23 | . 7 16 Melee 7 | . 1 6 Projectile 2 | . . 2 AOE 14 | . 6 8 Terrain Rammed . | . . . Walls Destroyed . | . . . Machines Disabled . | . . . Actions | -11 -10 -10 --------- Run | Yrd Mat Sub Total 3041 | 102 1712 1227 Wait 540 | . 501 39 Move 2230 | 83 1074 1073 Hop . | . . . Pick Up 22 | 6 15 1 Fast Attach 22 | 7 6 9 Attach 5 | . . 5 Detach 1 | . 1 . Swap 16 | . 9 7 Drop 29 | . 23 6 Fire 154 | 6 75 73 Melee 13 | . 1 12 Ram . | . . . Kick . | . . . Crush 7 | . 7 . Escape Stasis . | . . . Rewire . | . . . Trap . | . . . Miscellaneous 2 | . . 2 Route ------- -11/Scrapyard -10/Materials (discovered 5 exits: [*Mat x3] / [*Min] / [*Sub]) -10/Subcaves (discovered 1 exit: [*Mat]) History --------- Turn | Location | Event 6 | -11/Scrapyard | Discovered new exit (range 15) 158 | -11/Scrapyard | Entered Materials 250 | -10/Materials | Discovered new exit (range 13) 316 | -10/Materials | Build established: Mutant 1259 | -10/Materials | Discovered new exit (range 12) 1410 | -10/Materials | Discovered new exit (range 16) 1670 | -10/Materials | Discovered new exit (range 11) 1840 | -10/Materials | Discovered new exit (range 16) 2316 | -10/Materials | Repaired EM Shotgun? 2637 | -10/Materials | Entered Subcaves 2646 | -10/Subcaves | Ambushed by Subdwellers from Twisted Machinery 2727 | -10/Subcaves | Discovered new exit (range 15) 3303 | -10/Subcaves | A swath of the cavern ceiling suddenly collapsed 3320 | -10/Subcaves | A Subdweller sparked back to life 3320 | -10/Subcaves | A Subdweller sparked back to life 3347 | -10/Subcaves | Ambushed by Subdweller buried in earth 3359 | -10/Subcaves | Core integrity fell below 50% 3366 | -10/Subcaves | Found Prototype Processor 3366 | -10/Subcaves | Identified Rainbow Chip 3367 | -10/Subcaves | Attached Rainbow Chip, gained temporary slots: Power, Propulsion, Utility, Weapon 3685 | -10/Subcaves | Lost 3 parts (1p1n1w) 4511 | -10/Subcaves | Disturbed a concealed Subdweller 4513 | -10/Subcaves | Core integrity fell below 20% 4544 | -10/Subcaves | Disturbed a concealed Subdweller 4547 | -10/Subcaves | Disturbed a concealed Subdweller 4635 | -10/Subcaves | Destroyed by G2-2CZ(R) with Subdweller Laser Last Messages --------------- 04532_ Found Sub. Beam Cannon. 04532_ Found 16 Matter. 04535_ Searching scrap... 04535_ Found Sub. Optics. 04535_ Found Scrap Shield. 04535_ Found 23 Matter. 04542_ System corrupted: Heat flow error (+181). 04544_ E0-QJR(R) angrily emerges from the Twisted Machinery. 04547_ BF-UHU(R) angrily emerges from the Twisted Machinery. 04557_ System corrupted: Component data lost. 04563_ BF-UHU(R) destroyed. 04566_ Battle Rifle destroyed. 04566_ Temporary Weapon slot lost. 04569_ E0-QJR(R) affixes Scrap Shield Fragment to Scrap Shield. 04569_ E0-QJR(R) destroyed. 04578_ Acquired Sub. Monowheel. 04587_ Acquired 11 matter. Map ----- +----------------------------------------------------+ | ??????????# ##### #?# ### | | ??????????# # # ##!""## #?## #?# | | ??????????## # #### #""%%"# ##?## #?# | | ????# ## #&!!"]|% #??# ## #? | | ????# ! &#]&%##%&##??## ### #? | | ????# # ### !!*#*##&&##????## ## ##? | | ????## ?###??# #%%![ #??????## ### #####?? | | ?????# ??????## &&&& ##???????# #?####?????? | | ?????## ???????# & & ##????????###??????????? | | ??????##????????# ##??????????????????????? | | ????????????????## ##??????????????????????? | | ?????????????????### ####???????????????????? | | ???????????????????## ##??????????????????? | | ????????????????????# ##?????????????????? | | ????????????????????## # #?????????????????? | | ?????????????????????# ### ##????????????????? | | ?????????????????????# R##?#R ##???????????????? | | ???????????? ## #### ### #???????????????? | | ???????????? # ## #???????????????? | | ??????????????????# ##?##???????????????? | | ???????????????????# #???????????????????? | | ???????????????????#### #???????????????????? | | ??????????????????????## ##???????????????????? | | ???????????????????????## ##????????????????????? | | ???????????????????????# #?????????????????????? | | ???????????????????????##@ #?????????????????????? | | ??????????????????????? #?????????????????????? | | ????????????????????? ????????????????????? | | ??????????????????? " ???????????????????? | | ?????????????????# ### " ??????????????????? | | ?????????????????#???######## "????????????????? | | ?????????????????????????????" #???????????????? | | ?????????????????????????????? "" #??????????????? | | ???????????????????????????????" ??????????????? | | ???????????????????????????????? ????????????????? | | ?????????????????????????????????????????????????? | | ?????????????????????????????????????????????????? | | ?????????????????????????????????????????????????? | | ?????????????????????????????????????????????????? | | ?????????????????????????????????????????????????? | | ?????????????????????????????????????????????????? | | ?????????????????????????????????????????????????? | | ?????????????????????????????????????????????????? | | ?????????????????????????????????????????????????? | | ?????????????????????????????????????????????????? | | ?????????????????????????????????????????????????? | | ?????????????????????????????????????????????????? | | ?????????????????????????????????????????????????? | | ?????????????????????????????????????????????????? | | ?????????????????????????????????????????????????? | +----------------------------------------------------+ Best States ------------- Heat Dissipation 25 Coolant Potential 50 Energy Generation 15 Energy Capacity 250 Matter Stores 300 Matter Capacity 300 Sight Range 16 Terrain Scan Range 16 Terrain Scan Density 10 Armor Coverage 800 Evasion (%) 40 Recoil Reduction 2 Item Schematics ----------------- None Robot Schematics ------------------ None Fabricated ------------ Nothing Alien Tech Used ----------------- None Achievements -------------- None Challenges ------------ None Game ------ Seed AuthchipTrapSheargun Manual? 0 Play Time 00:32:44 Cumulative 63.7 hours Start 2024.04.10 @ 00:04:49 End 2024.04.10 @ 00:38:41 Sessions 1 Manual Loads 0 Difficulty Rogue Special Mode None Game No. 62 Rogue 62 Adventurer 0 Explorer 0 Win Type - Total 0 Types 0/0/0/0/0/0/0/0/0 Lore% 23 Gallery% 42 Achievement% 37 Wizard Run 0 Options --------- Layout 2 ASCII 0 Keyboard 1 Movement Numpad Keybinds 0 Fullscreen 2 Font 32/Smallcaps Map View 50x44 Zoom Use 0% Tactical HUD 1 Map Filters NONE Filters NONE Steam 1 RUN: 9bcf56cc-7144-4556-a2a3-d4e26cea967d